bitfinex/quotes_SOLUSD_20241209
["timestamp","ask_amount","ask_price","bid_price","bid_amount"]
[1733734963810,20.0,227.3,227.24,6.3356]
[1733734963967,23.776884,227.29,227.24,6.3356]
[1733734964166,20.0,227.26,227.24,6.3356]
[1733734964372,20.0,227.22,227.19,6.5339]
[1733734964592,23.776884,227.25,227.19,6.5339]
[1733734964767,20.0,227.4,227.19,6.5339]
[1733734964964,23.776884,227.35,227.19,6.5339]
[1733734965194,20.0,227.28,227.19,6.5339]
[1733734965498,23.776884,227.27,227.19,6.5339]
[1733734965795,3.40885913,227.41,227.19,6.3356]
[1733734965796,23.776884,227.23,227.19,6.3356]
[1733734968512,23.776884,227.19,227.13,6.1114]
[1733734971181,137.6,227.38,227.13,6.1114]
[1733734971514,23.776884,227.37,227.13,6.1114]
[1733734971677,137.6,227.38,227.13,6.1114]
[1733734971880,140.9953325,227.41,227.14,20.45294893]
[1733734972101,140.9953325,227.41,227.15,21.11303108]
[1733734972309,140.9953325,227.41,227.13,6.1114]
[1733734972475,3.88928076,227.4,227.13,6.1114]
[1733734973496,23.776884,227.39,227.13,6.1114]
[1733734973804,27.66616476,227.4,227.14,0.66019596]
[1733734975177,27.66616476,227.4,227.16,20.0]
[1733734975413,27.66616476,227.4,227.17,0.66004028]
[1733734975941,27.66616476,227.4,227.17,20.66004028]
[1733734976074,3.3953325,227.41,227.18,6.0814]
[1733734977014,7.28461326,227.41,227.18,6.0814]
[1733734977191,5.63051326,227.41,227.19,0.85832426]
[1733734977712,20.0,227.38,227.19,0.85832426]
[1733734978409,20.0,227.34,227.19,0.85832426]
[1733734978780,20.0,227.3,227.19,0.85832426]
[1733734979105,23.776884,227.29,227.19,0.85832426]
[1733734979321,137.6,227.52,227.19,21.31127319]
[1733734979992,3.88928076,227.47,227.19,21.31127319]
[1733734980989,20.0,227.43,227.19,21.31127319]
[1733734981520,20.0,227.39,227.22,20.0]
[1733734981748,3.88928076,227.47,227.19,21.31127319]
[1733734981749,3.88928076,227.47,227.24,6.1159]
[1733734981900,7.96700467,227.5,227.25,0.65976005]
[1733734982216,1.77720467,227.5,227.29,20.45294893]
[1733734982417,1.5075,227.55,227.3,6.77981025]
[1733734982986,1.5075,227.55,227.3,6.1202]
[1733734983462,157.6,227.5,227.3,6.1202]
[1733734983622,43.776884,227.46,227.3,6.1202]
[1733734983927,20.0,227.42,227.3,6.1202]
[1733734984219,20.0,227.34,227.3,6.1202]
[1733734984398,23.776884,227.33,227.3,6.1202]
[1733734984594,20.0,227.38,227.3,6.1202]
[1733734984805,23.776884,227.37,227.3,6.1202]
[1733734985208,20.0,227.38,227.3,6.1202]
[1733734985506,1.5075,227.55,227.31,0.65966072]
[1733734985507,139.1075,227.55,227.31,0.65966072]
[1733734986017,5.39678076,227.55,227.31,0.65966072]
[1733734986213,1.5075,227.55,227.32,20.45294893]
[1733734986416,3.88928076,227.59,227.35,27.12904893]
[1733734986632,8.1807,227.63,227.36,0.65943665]
[1733734986796,17.599457,227.55,227.36,0.65943665]
[1733734986996,13.87664106,227.63,227.36,0.65943665]
[1733734987420,13.87664106,227.63,227.36,21.11238558]
[1733734987598,17.596209,227.62,227.39,26.93074893]
[1733734987915,17.596209,227.62,227.4,0.65925544]
[1733734988131,17.596209,227.62,227.4,21.11220437]
[1733734988336,17.596209,227.62,227.4,0.65925544]
[1733734989031,20.0,227.58,227.4,0.65925544]
[1733734989537,20.0,227.54,227.4,0.65925544]
[1733734989931,17.596209,227.62,227.44,20.45294893]
[1733734990234,1.6292,227.69,227.46,20.45294893]
[1733734990410,1.6292,227.69,227.47,0.65911054]
[1733734990729,1.6292,227.69,227.47,21.11205947]
[1733734990973,1.6292,227.69,227.48,20.45294893]
[1733734991148,1.76515039,227.73,227.49,7.2276463]
[1733734991440,137.6,227.73,227.49,6.5686]
[1733734992305,137.6,227.73,227.5,0.65918881]
[1733734993729,20.0,227.69,227.5,0.65918881]
[1733734993929,20.0,227.7,227.49,6.5686]
[1733734995033,23.776884,227.69,227.49,6.5686]
[1733734995233,23.776884,227.65,227.49,6.5686]
[1733734995547,20.0,227.7,227.5,0.65912338]
[1733734995735,137.6,227.78,227.5,21.11207231]
[1733734996040,141.48928076,227.78,227.5,21.11207231]
[1733734996235,3.40492317,227.77,227.5,21.11207231]
[1733734996430,1.6292,227.77,227.5,21.11207231]
[1733734996634,1.6292,227.77,227.53,20.45294893]
[1733734996823,1.6292,227.77,227.55,6.4018]
[1733734997022,1.6292,227.77,227.56,0.65890866]
[1733734997946,3.43541742,227.77,227.56,0.65890866]
[1733734998157,23.776884,227.76,227.56,0.65890866]
[1733734999058,20.0,227.73,227.56,0.65890866]
[1733734999350,1.80621742,227.77,227.57,0.1983]
[1733734999528,20.0,227.8,227.57,0.1983]
[1733734999726,20.0,227.76,227.57,0.1983]
[1733734999922,20.0,227.75,227.57,0.1983]
[1733735000150,157.6,227.75,227.55,6.4018]
[1733735000355,1.5494,227.7,227.55,6.4018]
[1733735000649,20.0,227.54,227.39,0.1983]
[1733735000947,23.776884,227.53,227.39,0.1983]
[1733735001154,23.776884,227.49,227.39,0.1983]
[1733735001353,20.0,227.46,227.39,0.1983]
[1733735001851,23.776884,227.45,227.39,0.1983]
[1733735002064,23.776884,227.41,227.32,0.1983]
[1733735002353,20.0,227.38,227.32,0.1983]
[1733735002558,23.776884,227.37,227.32,0.1983]
[1733735002849,1.77249866,227.52,227.32,0.1983]
[1733735003059,23.776884,227.43,227.32,0.1983]
[1733735003230,20.0,227.36,227.25,0.85796726]
[1733735003559,20.0,227.36,227.25,0.1983]
[1733735003852,137.6,227.53,227.26,27.15018467]
[1733735004056,20.0,227.51,227.26,27.15018467]
[1733735004261,23.776884,227.46,227.29,20.45294893]
[1733735004429,20.0,227.43,227.31,20.45294893]
[1733735004633,3.37968192,227.55,227.34,27.01764893]
[1733735004847,1.5349,227.62,227.35,0.6594647]
[1733735005358,3.31147804,227.62,227.35,0.6594647]
[1733735005653,1.5349,227.62,227.35,0.6594647]
[1733735006164,23.776884,227.61,227.35,0.6594647]
[1733735006827,1.5349,227.62,227.38,20.45294893]
[1733735007054,1.5349,227.62,227.4,6.1806]
[1733735007233,1.5349,227.62,227.41,0.65928568]
[1733735007636,1.5349,227.62,227.4,6.1806]
[1733735007841,3.32435499,227.62,227.41,0.65938368]
[1733735008047,23.776884,227.61,227.41,0.65938368]
[1733735009758,23.776884,227.61,227.4,6.1806]
[1733735009759,23.776884,227.49,227.4,6.1806]
[1733735009943,23.776884,227.49,227.42,0.6593894]
[1733735010356,23.776884,227.49,227.4,6.1806]
[1733735011461,23.776884,227.49,227.41,0.65941359]
[1733735011851,23.776884,227.49,227.4,6.1806]
[1733735012439,23.776884,227.49,227.41,0.65939453]
[1733735012976,1.72632273,227.63,227.41,21.11234346]
[1733735013141,1.5005,227.69,227.42,20.45294893]
[1733735013338,5.65570358,227.67,227.43,0.6592219]
[1733735014065,5.65570358,227.67,227.44,20.0]
[1733735014252,5.65570358,227.67,227.36,0.1983]
[1733735014253,1.76642282,227.67,227.46,6.341]
[1733735014449,1.5005,227.69,227.47,21.11210747]
[1733735014689,3.88928076,227.73,227.49,20.0]
[1733735014861,137.6,227.75,227.5,0.65905575]
[1733735015071,137.6,227.75,227.51,6.0865]
[1733735015236,137.6,227.75,227.52,0.65900763]
[1733735015437,9.5079609,227.76,227.52,0.65900763]
[1733735015671,9.5079609,227.76,227.54,20.0]
[1733735015865,9.5079609,227.76,227.55,0.65896745]
[1733735016236,3.2891609,227.76,227.55,0.65896745]
[1733735016454,1.5443,227.76,227.55,0.65896745]
[1733735016845,23.776884,227.75,227.55,0.65896745]
[1733735017071,1.5443,227.76,227.55,0.65896745]
[1733735017567,6.0288,227.82,227.56,6.3548]
[1733735017767,6.0288,227.82,227.57,0.85712485]
[1733735018152,6.0288,227.82,227.57,0.1983]
[1733735018353,7.82528318,227.82,227.57,0.85720933]
[1733735019855,23.776884,227.78,227.57,0.85720933]
[1733735020344,20.0,227.71,227.57,0.85720933]
[1733735020542,1.6086,227.83,227.61,20.45294893]
[1733735020768,17.577514,227.89,227.64,20.45294893]
[1733735020977,17.577514,227.89,227.65,21.11154254]
[1733735021267,3.28685146,227.9,227.66,20.45294893]
[1733735021481,3.28685146,227.9,227.67,0.65853713]
[1733735021640,3.28685146,227.9,227.67,21.11148606]
[1733735022041,3.28685146,227.9,227.67,0.65853713]
[1733735022969,23.776884,227.89,227.68,6.2287]
[1733735023275,23.776884,227.85,227.69,0.65847138]
[1733735023447,20.0,227.89,227.69,0.65847138]
[1733735024970,20.0,227.85,227.69,0.65847138]
[1733735025173,23.776884,227.84,227.68,6.2287]
[1733735025349,23.776884,227.88,227.68,6.2287]
[1733735025350,20.0,227.77,227.68,6.2287]
[1733735025545,23.776884,227.76,227.68,6.2287]
[1733735026785,23.776884,227.72,227.68,6.2287]
[1733735027349,20.0,227.89,227.68,6.2287]
[1733735027576,23.776884,227.88,227.68,6.2287]
[1733735027781,1.75556961,227.89,227.69,0.65859457]
[1733735027985,0.5189253,227.92,227.69,0.65859457]
[1733735029179,20.5189253,227.92,227.69,0.65859457]
[1733735030046,23.776884,227.87,227.68,6.2287]
[1733735030283,20.0,227.8,227.68,6.2287]
[1733735030585,20.0,227.88,227.68,6.2287]
[1733735030779,20.0,227.84,227.68,6.2287]
[1733735030977,23.776884,227.83,227.69,0.65859986]
[1733735031975,23.776884,227.83,227.68,6.2287]
[1733735032170,23.776884,227.79,227.68,6.2287]
[1733735032378,2.30629871,227.92,227.73,0.1983]
[1733735032689,0.5189253,227.92,227.85,40.45294893]
[1733735032863,0.5189253,227.92,227.87,20.45294893]
[1733735033064,0.5189253,227.92,227.88,0.65795675]
[1733735033466,0.5189253,227.92,227.89,20.45294893]
[1733735033695,0.5189253,227.92,227.9,0.65794435]
[1733735034077,0.5189253,227.92,227.86,0.65794179]
[1733735035685,0.5189253,227.92,227.86,21.11089072]
[1733735036690,0.5189253,227.92,227.86,0.65794179]
[1733735040577,0.5189253,227.92,227.86,21.11089072]
[1733735040798,0.5189253,227.92,227.86,0.65794179]
[1733735041493,0.5189253,227.92,227.82,6.0855]
[1733735041880,0.5189253,227.92,227.78,0.65817743]
[1733735042211,0.5189253,227.92,227.77,6.0086]
[1733735042583,0.5189253,227.92,227.73,0.1983]
[1733735043089,0.5189253,227.92,227.72,0.65847492]
[1733735043090,7.9016,227.91,227.72,0.65847492]
[1733735043273,23.776884,227.86,227.71,6.0879]
[1733735043469,23.776884,227.86,227.66,20.65124893]
[1733735043470,20.0,227.79,227.67,0.65861163]
[1733735043671,23.776884,227.78,227.67,0.65861163]
[1733735044487,7.9016,227.91,227.71,20.45294893]
[1733735044688,43.776884,227.87,227.72,21.11140844]
[1733735045409,43.776884,227.87,227.69,20.45294893]
[1733735045578,43.776884,227.87,227.7,0.65854552]
[1733735046719,43.776884,227.87,227.68,21.11152354]
[1733735046891,43.776884,227.87,227.7,20.45294893]
[1733735047209,43.776884,227.87,227.71,0.65852984]
[1733735048603,43.776884,227.87,227.68,0.65855266]
[1733735048811,43.776884,227.87,227.68,21.11150159]
[1733735049106,43.776884,227.87,227.68,0.65855266]
[1733735049619,43.776884,227.87,227.7,20.45294893]
[1733735049820,43.776884,227.87,227.71,0.65846145]
[1733735050021,43.776884,227.87,227.69,0.65855925]
[1733735050334,43.776884,227.87,227.61,6.96625078]
[1733735050335,23.776884,227.85,227.62,0.6585604]
[1733735050504,20.0,227.78,227.62,0.6585604]
[1733735050705,23.776884,227.77,227.62,0.6585604]
[1733735050921,20.0,227.74,227.62,0.6585604]
[1733735051211,23.776884,227.73,227.62,0.6585604]
[1733735051381,23.776884,227.73,227.63,20.45294893]
[1733735051706,23.776884,227.73,227.66,20.45294893]
[1733735051882,23.776884,227.73,227.67,0.65860697]
[1733735055113,20.0,227.81,227.67,21.1115559]
[1733735055279,23.776884,227.8,227.67,21.1115559]
[1733735055793,23.776884,227.72,227.62,0.65863682]
[1733735056407,23.776884,227.72,227.54,0.1983]
[1733735056408,20.0,227.69,227.56,6.0879]
[1733735056605,23.776884,227.68,227.57,0.65887734]
[1733735058284,23.776884,227.68,227.51,6.0879]
[1733735058483,23.776884,227.64,227.52,0.65897141]
[1733735058730,23.776884,227.6,227.49,0.65897141]
[1733735058903,1.6077,227.59,227.47,0.65910026]
[1733735059220,23.776884,227.58,227.43,0.65920202]
[1733735059383,23.776884,227.58,227.44,20.45294893]
[1733735059598,23.776884,227.58,227.45,21.11211521]
[1733735060217,23.776884,227.58,227.45,0.65916628]
[1733735060718,23.776884,227.58,227.46,0.65923284]
[1733735060929,23.776884,227.58,227.41,21.11217545]
[1733735060930,20.0,227.55,227.41,21.11217545]
[1733735061217,43.776884,227.54,227.41,21.11217545]
[1733735061689,43.776884,227.54,227.43,20.45294893]
[1733735061888,43.776884,227.54,227.44,0.65920055]
[1733735062898,43.776884,227.54,227.41,0.65933243]
[1733735064013,43.776884,227.54,227.42,20.45294893]
[1733735064189,43.776884,227.54,227.43,0.65923955]
[1733735064894,43.776884,227.54,227.4,0.65938229]
[1733735065784,20.0,227.54,227.41,0.65943971]
[1733735065989,6.4857,227.57,227.44,20.45294893]
[1733735066292,6.4857,227.57,227.45,0.6591669]
[1733735067898,23.776884,227.56,227.45,0.6591669]
[1733735069219,23.776884,227.52,227.42,0.65926592]
[1733735069728,23.776884,227.52,227.39,0.65935918]
[1733735070702,23.776884,227.52,227.4,0.65935994]
[1733735070901,6.4857,227.57,227.4,0.65935994]
[1733735070902,6.4857,227.57,227.44,20.45294893]
[1733735071206,6.4857,227.57,227.45,0.65921308]
[1733735071420,6.4857,227.57,227.45,21.11216201]
[1733735071608,6.4857,227.57,227.46,20.45294893]
[1733735071804,6.4857,227.57,227.47,0.65913265]
[1733735072623,1.6077,227.59,227.5,20.45294893]
[1733735072936,1.6077,227.59,227.51,21.11193112]
[1733735073118,1.6077,227.59,227.51,0.65898219]
[1733735073832,1.6077,227.59,227.52,0.65906579]
[1733735074134,23.776884,227.58,227.48,0.65911118]
[1733735075027,1.6077,227.59,227.49,0.65913184]
[1733735075335,23.776884,227.58,227.49,0.65913184]
[1733735076130,23.776884,227.58,227.5,0.65914683]
[1733735076330,23.776884,227.58,227.47,20.45294893]
[1733735076633,23.776884,227.58,227.48,0.6591301]
[1733735076842,23.776884,227.58,227.49,20.45294893]
[1733735077015,23.776884,227.58,227.5,0.65907475]
[1733735080216,1.6077,227.59,227.5,21.11202368]
[1733735080406,1.6077,227.59,227.52,20.45294893]
[1733735080603,1.6077,227.59,227.53,0.65894343]
[1733735080807,1.6077,227.59,227.47,20.0]
[1733735081249,1.6077,227.59,227.44,0.65924894]
[1733735081735,23.776884,227.58,227.44,0.65924894]
[1733735081933,20.0,227.53,227.41,0.65926893]
[1733735082332,6.1637,227.57,227.41,0.65926893]
[1733735082333,23.776884,227.52,227.41,0.65926893]
[1733735082914,23.776884,227.52,227.31,11.1963]
[1733735082915,20.0,227.5,227.42,0.65935849]
[1733735084048,20.0,227.5,227.43,0.65929293]
[1733735084942,20.0,227.5,227.44,0.65929366]
[1733735085253,23.776884,227.56,227.44,21.11224259]
[1733735085648,6.1637,227.57,227.44,21.11224259]
[1733735085857,6.1637,227.57,227.48,20.0]
[1733735086033,6.1637,227.57,227.49,20.65911497]
[1733735086440,6.1637,227.57,227.49,0.65911497]
[1733735086948,6.1637,227.57,227.46,20.45294893]
[1733735086949,6.1637,227.57,227.5,0.65913407]
[1733735087157,6.1637,227.57,227.46,0.65912666]
[1733735087771,23.776884,227.56,227.46,0.65912666]
[1733735088059,23.776884,227.56,227.44,0.65919826]
[1733735088632,20.0,227.53,227.44,0.65919826]
[1733735088836,23.776884,227.52,227.38,0.65934954]
[1733735089056,1.6566,227.47,227.34,20.45294893]
[1733735089255,1.6566,227.47,227.38,20.45294893]
[1733735089473,1.6566,227.47,227.39,0.65943643]
[1733735089637,1.5743,227.53,227.42,20.45294893]
[1733735089966,1.5743,227.53,227.43,0.65925]
[1733735090342,23.776884,227.52,227.43,0.65925]
[1733735090852,23.776884,227.52,227.44,0.65931821]
[1733735091159,1.5743,227.53,227.42,20.45294893]
[1733735091329,1.5743,227.53,227.45,20.45294893]
[1733735091528,1.5743,227.53,227.46,0.65916656]
[1733735091951,1.5743,227.53,227.47,20.45294893]
[1733735092152,1.5743,227.53,227.48,0.65909512]
[1733735092542,1.5743,227.53,227.45,0.65921028]
[1733735093954,1.5743,227.53,227.45,21.11215921]
[1733735094130,1.5743,227.53,227.46,20.45294893]
[1733735094342,1.5743,227.53,227.47,0.65911791]
[1733735094742,6.1637,227.57,227.5,20.45294893]
[1733735095040,6.1637,227.57,227.51,0.65903028]
[1733735097537,6.1637,227.57,227.51,21.11197921]
[1733735097938,6.1637,227.57,227.51,0.65903028]
[1733735099375,1.613,227.59,227.54,20.45294893]
[1733735099668,6.4254,227.63,227.55,0.65887833]
[1733735100272,6.4254,227.63,227.56,20.45294893]
[1733735100436,1.5614,227.65,227.51,20.0]
[1733735100437,1.5614,227.65,227.58,20.45294893]
[1733735100635,1.5614,227.65,227.59,0.65879523]
[1733735102460,1.5614,227.65,227.56,0.65882924]
[1733735102863,1.5614,227.65,227.56,20.65882924]
[1733735103071,1.5614,227.65,227.56,0.65882924]
[1733735103759,1.5614,227.65,227.58,20.45294893]
[1733735103959,6.3655,227.69,227.6,20.45294893]
[1733735104170,6.3655,227.69,227.61,0.65871348]
[1733735104544,6.3655,227.69,227.58,0.65876905]
[1733735105062,23.776884,227.68,227.58,0.65876905]
[1733735105277,6.3655,227.69,227.58,21.11171798]
[1733735105482,6.3655,227.69,227.59,20.45294893]
[1733735105777,6.3655,227.69,227.6,0.65872492]
[1733735108694,7.9735,227.76,227.68,12.74554851]
[1733735108845,7.9735,227.76,227.6,0.65872492]
[1733735108846,1.6557,227.76,227.71,32.74554851]
[1733735109047,1.6557,227.76,227.72,0.65845034]
[1733735109446,6.3178,227.81,227.74,20.37076512]
[1733735109642,6.3178,227.81,227.77,20.0]
[1733735109851,6.3178,227.81,227.78,0.65830948]
[1733735110147,7.6039,227.88,227.79,40.37076512]
[1733735110379,7.6039,227.88,227.8,21.02890316]
[1733735110676,7.6039,227.88,227.8,0.65813804]
[1733735111286,7.6039,227.88,227.76,20.0]
[1733735111488,20.0,227.85,227.73,20.65832992]
[1733735111772,23.776884,227.84,227.71,0.65840362]
[1733735112766,23.776884,227.84,227.72,0.65842304]
[1733735112972,23.776884,227.8,227.7,0.65843105]
[1733735113273,6.1837,227.78,227.7,0.65843105]
[1733735113487,6.1837,227.78,227.68,20.37076512]
[1733735113768,6.1837,227.78,227.69,0.65845268]
[1733735115068,6.1837,227.78,227.69,21.0292178]
[1733735116152,6.1837,227.78,227.69,20.65845268]
[1733735116846,6.1837,227.78,227.7,20.37076512]
[1733735117047,6.1837,227.78,227.71,0.65838186]
[1733735120499,1.5345,227.79,227.74,20.37076512]
[1733735120775,6.5079,227.83,227.78,20.37076512]
[1733735120952,6.1663,227.89,227.82,20.37076512]
[1733735121151,6.1663,227.89,227.83,21.0288375]
[1733735121479,1.5666,227.91,227.83,21.0288375]
[1733735121480,1.5666,227.91,227.85,20.37076512]
[1733735121661,1.5666,227.91,227.86,0.65801107]
[1733735121865,1.5666,227.91,227.86,21.02877619]
[1733735122058,0.5189253,227.92,227.86,0.65801107]
[1733735122512,0.5189253,227.92,227.86,21.02877619]
[1733735122695,0.5189253,227.92,227.86,0.65801107]
[1733735123216,0.5189253,227.92,227.86,21.02877619]
[1733735123811,0.5189253,227.92,227.88,20.37076512]
[1733735124122,0.5189253,227.92,227.89,21.02861608]
[1733735124606,0.5189253,227.92,227.9,20.37076512]
[1733735124916,0.5189253,227.92,227.89,0.65785096]
[1733735124917,0.5189253,227.92,227.91,21.02854875]
[1733735125090,0.5189253,227.92,227.91,21.15403875]
[1733735126144,0.5189253,227.92,227.91,0.65778363]
[1733735127012,0.5189253,227.92,227.91,21.02854875]
[1733735127812,0.5189253,227.92,227.91,21.15403875]
[1733735128004,0.5189253,227.92,227.91,44.93092275]
[1733735128693,1.539,228.09,227.94,20.0]
[1733735128891,1.539,228.09,228.0,20.37076512]
[1733735129096,1.539,228.09,228.01,21.02829712]
[1733735129303,1.539,228.09,228.02,20.37076512]
[1733735129524,1.539,228.09,228.03,21.02826236]
[1733735130090,1.5468,228.14,228.06,20.37076512]
[1733735130303,1.5468,228.14,228.07,21.02812358]
[1733735130611,1.5468,228.14,228.09,20.37076512]
[1733735130800,1.5468,228.14,228.1,0.65728562]
[1733735131800,1.5468,228.14,228.06,0.6573945]
[1733735132717,1.5468,228.14,228.07,0.65739883]
[1733735132924,23.776884,228.13,228.05,0.65742328]
[1733735133504,23.776884,228.13,228.02,0.65754442]
[1733735133720,23.776884,228.11,228.02,0.65754442]
[1733735133905,23.776884,228.11,227.9,6.0879]
[1733735133906,23.776884,228.11,227.98,20.37076512]
[1733735134223,23.776884,228.11,227.99,21.0283578]
[1733735134530,6.539,228.12,228.04,20.37076512]
[1733735134716,6.539,228.12,228.05,21.02817789]
[1733735135017,6.539,228.12,228.06,20.37076512]
[1733735135226,6.539,228.12,228.07,0.65737883]
[1733735135727,1.5468,228.14,228.07,0.65737883]
[1733735135900,0.5189253,228.15,228.1,20.37076512]
[1733735136102,0.5189253,228.15,228.12,20.37076512]
[1733735136331,0.5189253,228.15,228.13,0.65721729]
[1733735137217,0.5189253,228.15,228.13,21.02798241]
[1733735138030,0.5189253,228.15,228.14,20.0]
[1733735138406,0.5189253,228.15,228.14,20.65721923]
[1733735139236,0.5189253,228.15,228.14,41.02798435]
[1733735140035,0.5189253,228.15,228.14,0.65721923]
[1733735140330,0.5189253,228.15,228.14,21.02798435]
[1733735140712,0.5189253,228.15,228.14,0.65721923]
[1733735140908,0.5189253,228.15,228.12,0.65718904]
[1733735141404,0.5189253,228.15,228.07,0.65735167]
[1733735142021,6.1912,228.14,228.07,0.65735167]
[1733735142223,6.1912,228.14,228.0,5.88487335]
[1733735142224,1.569,228.12,228.03,0.65746761]
[1733735142399,23.776884,228.11,228.03,0.65746761]
[1733735142612,23.776884,228.11,227.97,0.65760589]
[1733735143530,20.0,228.07,227.98,0.65774523]
[1733735143712,20.0,228.05,227.94,0.65774523]
[1733735143905,23.776884,228.04,227.94,0.65774523]
[1733735144109,23.776884,228.04,227.94,21.02851035]
[1733735144514,23.776884,228.04,227.94,0.65774523]
[1733735144740,23.776884,228.04,227.94,21.02851035]
[1733735145511,23.776884,228.04,227.94,0.65774523]
[1733735145722,23.776884,228.04,227.95,0.65775972]
[1733735146238,23.776884,228.04,227.96,20.37076512]
[1733735146441,23.776884,228.04,227.98,20.37076512]
[1733735146648,23.776884,228.08,227.99,0.65763837]
[1733735146942,1.5619,228.09,228.01,20.37076512]
[1733735147107,21.54086472,228.47,228.05,20.37076512]
[1733735147108,1.6325,228.14,228.05,20.37076512]
[1733735147443,1.6325,228.14,228.06,0.65741524]
[1733735147827,1.6325,228.14,228.06,20.65741524]
[1733735148516,1.6325,228.14,228.06,0.65741524]
[1733735148913,23.776884,228.13,228.05,0.65751314]
[1733735149127,23.776884,228.13,228.01,0.65753126]
[1733735150448,20.0,228.06,227.97,0.65766676]
[1733735150744,7.822,228.04,227.94,20.37076512]
[1733735151050,7.822,228.04,227.95,0.65769889]
[1733735151252,23.776884,228.03,227.95,0.65769889]
[1733735152812,23.776884,228.03,227.92,0.65775261]
[1733735153012,23.776884,228.03,227.9,0.65784426]
[1733735153253,23.776884,227.99,227.85,21.02873718]
[1733735153823,23.776884,227.99,227.85,0.65797206]
[1733735154022,23.776884,227.99,227.88,20.37076512]
[1733735154335,7.822,228.04,227.91,20.37076512]
[1733735154537,7.822,228.04,227.92,0.65778224]
[1733735154851,7.822,228.04,227.92,21.02854736]
[1733735154852,23.776884,228.03,227.92,21.02854736]
[1733735155346,7.822,228.04,227.99,20.0]
[1733735155537,7.822,228.04,228.0,0.65764822]
[1733735155711,7.822,228.04,228.01,20.0]
[1733735155913,1.5855,228.04,228.02,0.65755272]
[1733735156315,1.5855,228.04,227.98,20.37076512]
[1733735156316,1.5855,228.04,228.0,0.65762675]
[1733735157151,1.5855,228.04,227.91,21.02842855]
[1733735157516,23.776884,228.03,227.93,20.37076512]
[1733735157721,23.776884,228.03,227.94,0.65774563]
[1733735158747,1.5855,228.04,227.95,0.65773752]
[1733735159626,23.776884,228.03,227.95,0.65773752]
[1733735159828,23.776884,228.03,227.96,0.65775892]
[1733735160715,23.776884,228.03,227.97,0.65778846]
[1733735160918,23.776884,228.03,227.92,0.65777534]
[1733735161557,20.0,228.0,227.92,0.65777534]
[1733735161728,6.3386,227.99,227.86,0.65792427]
[1733735162266,6.3386,227.99,227.8,0.65797333]
[1733735162267,20.0,227.96,227.8,0.65797333]
[1733735163252,20.0,227.96,227.83,20.37076512]
[1733735163548,20.0,227.96,227.84,0.6580236]
[1733735164334,20.0,227.96,227.8,0.65814537]
[1733735164534,7.9607,227.95,227.8,0.65814537]
[1733735164839,20.0,227.92,227.8,0.65814537]
[1733735165544,20.0,227.88,227.77,0.65822674]
[1733735165737,20.0,227.88,227.71,0.65837083]
[1733735165931,1.6601,227.87,227.71,0.65837083]
[1733735166326,6.2593,227.86,227.71,0.65837083]
[1733735166638,6.2593,227.86,227.72,21.02918387]
[1733735166823,6.2593,227.86,227.72,0.65841875]
[1733735167250,6.2593,227.86,227.74,20.0]
[1733735167470,6.2593,227.86,227.77,20.0]
[1733735167646,6.2593,227.86,227.78,0.65822006]
[1733735168162,6.2593,227.86,227.79,20.0]
[1733735168463,6.2593,227.86,227.8,20.6581962]
[1733735169040,6.2593,227.86,227.8,0.6581962]
[1733735169270,6.2593,227.86,227.77,0.65830454]
[1733735169465,6.2593,227.86,227.78,20.37076512]
[1733735169640,6.2593,227.86,227.79,0.65819449]
[1733735170550,6.2593,227.86,227.75,0.65828527]
[1733735171240,6.2593,227.86,227.71,0.65838938]
[1733735171836,6.2593,227.86,227.71,21.0291545]
[1733735172338,6.2593,227.86,227.71,0.65838938]
[1733735172758,6.2593,227.86,227.73,20.0]
[1733735172938,6.2593,227.86,227.74,0.65838731]
[1733735173138,6.2593,227.86,227.78,20.0]
[1733735173748,6.2593,227.86,227.76,0.6582884]
[1733735173749,6.2593,227.86,227.76,20.6582884]
[1733735174165,6.2593,227.86,227.76,0.6582884]
[1733735174472,6.2593,227.86,227.77,0.65834952]
[1733735175044,6.2593,227.86,227.74,0.65836494]
[1733735175462,6.2593,227.86,227.71,0.65843899]
[1733735175671,6.2593,227.86,227.73,20.37076512]